bitfinex/quotes_BTCUSD_20241013
["timestamp","ask_amount","ask_price","bid_price","bid_amount"]
[1728862547251,0.174838,62880.0,62879.0,2.31146328]
[1728862547474,0.174838,62880.0,62879.0,2.33516564]
[1728862547960,0.174838,62880.0,62879.0,2.2161221]
[1728862548412,0.174838,62880.0,62879.0,2.33516564]
[1728862548651,0.174838,62880.0,62879.0,2.11061548]
[1728862548864,0.174838,62880.0,62879.0,2.33516564]
[1728862550937,0.174838,62880.0,62879.0,2.2391221]
[1728862551157,0.091638,62880.0,62879.0,2.2391221]
[1728862551414,0.001638,62880.0,62879.0,2.2411221]
[1728862552524,0.001638,62880.0,62879.0,2.35339718]
[1728862552741,0.001638,62880.0,62879.0,2.2411221]
[1728862552970,0.0826,62887.0,62885.0,0.31395]
[1728862553195,0.0826,62887.0,62885.0,0.71562771]
[1728862553412,0.0826,62887.0,62885.0,0.91553233]
[1728862553634,0.0826,62887.0,62885.0,2.16793233]
[1728862553869,0.0826,62887.0,62885.0,2.16295324]
[1728862554083,0.0826,62887.0,62885.0,2.16593208]
[1728862554293,0.0826,62887.0,62885.0,2.08454394]
[1728862554739,0.0826,62887.0,62885.0,2.10054394]
[1728862555471,0.0992,62889.0,62885.0,2.21776509]
[1728862555702,0.0992,62889.0,62885.0,2.10054394]
[1728862556168,0.0992,62889.0,62885.0,2.08654394]
[1728862556426,0.0992,62889.0,62885.0,2.10054394]
[1728862556618,0.0992,62889.0,62885.0,2.0955651]
[1728862556830,0.0992,62889.0,62885.0,2.0935651]
[1728862557047,0.0992,62889.0,62885.0,2.07952045]
[1728862557292,0.0992,62889.0,62885.0,2.09352045]
[1728862558228,0.00164,62890.0,62885.0,1.98124537]
[1728862558449,0.180538,62886.0,62885.0,2.21271403]
[1728862559120,0.180538,62886.0,62885.0,2.09352045]
[1728862559539,0.180538,62886.0,62885.0,2.09849913]
[1728862560388,0.180538,62886.0,62885.0,2.05858707]
[1728862560603,0.180538,62886.0,62885.0,1.9710114]
[1728862560820,0.180538,62886.0,62885.0,1.83489545]
[1728862561082,0.180538,62886.0,62885.0,1.60562306]
[1728862561779,0.180538,62886.0,62885.0,1.59162306]
[1728862561996,0.180538,62886.0,62885.0,1.60562306]
[1728862562217,0.180538,62886.0,62885.0,1.59162306]
[1728862562430,0.180538,62886.0,62885.0,1.43039905]
[1728862562676,0.180538,62886.0,62880.0,0.318064]
[1728862562677,0.339555,62886.0,62880.0,0.318064]
[1728862562943,0.1677,62883.0,62882.0,0.159026]
[1728862563397,0.1677,62883.0,62881.0,0.159029]
[1728862563608,0.1677,62883.0,62882.0,0.159028]
[1728862564489,0.19261036,62883.0,62882.0,0.159028]
[1728862565175,0.19261036,62883.0,62882.0,0.187028]
[1728862568208,0.19761036,62883.0,62882.0,0.028]
[1728862568434,0.164028,62882.0,62881.0,0.001638]
[1728862568673,0.45100308,62882.0,62881.0,0.001638]
[1728862569880,0.338728,62882.0,62881.0,0.001638]
[1728862571084,0.339728,62882.0,62881.0,0.010638]
[1728862571794,0.339728,62882.0,62881.0,0.001638]
[1728862571795,0.338728,62882.0,62881.0,0.001638]
[1728862572026,0.338728,62882.0,62881.0,0.003638]
[1728862574452,0.36364229,62882.0,62881.0,0.003638]
[1728862576547,0.20461429,62882.0,62881.0,0.003638]
[1728862576785,0.36364229,62882.0,62881.0,0.003638]
[1728862579410,0.36446129,62882.0,62881.0,0.003638]
[1728862581482,0.339547,62882.0,62881.0,0.003638]
[1728862583391,0.55923308,62882.0,62881.0,0.003638]
[1728862583636,0.55923308,62882.0,62875.0,0.001638]
[1728862583637,0.164043,62876.0,62875.0,0.001638]
[1728862583869,0.50132928,62876.0,62875.0,0.001638]
[1728862585339,0.50232928,62876.0,62875.0,0.001638]
[1728862591154,0.50432928,62876.0,62875.0,0.001638]
[1728862591359,0.50232928,62876.0,62875.0,0.001638]
[1728862592073,0.44800965,62876.0,62875.0,0.001638]
[1728862594638,0.47292542,62876.0,62875.0,0.001638]
[1728862597560,0.47492542,62876.0,62875.0,0.001638]
[1728862597795,0.64129513,62876.0,62875.0,0.001638]
[1728862598008,0.64114943,62876.0,62875.0,0.001638]
[1728862599517,0.64614943,62876.0,62875.0,0.002638]
[1728862599730,0.64514943,62876.0,62875.0,0.002638]
[1728862599952,0.65114943,62876.0,62875.0,0.002638]
[1728862601703,0.62623366,62876.0,62875.0,0.002638]
[1728862602323,0.51206701,62876.0,62875.0,0.002638]
[1728862602532,0.62623366,62876.0,62875.0,0.002638]
[1728862602759,0.78760337,62876.0,62875.0,0.002638]
[1728862603645,0.62623366,62876.0,62875.0,0.002638]
[1728862604727,0.65115148,62876.0,62875.0,0.002638]
[1728862606389,0.72229477,62876.0,62875.0,0.002638]
[1728862606621,0.65115148,62876.0,62875.0,0.002638]
[1728862607267,0.77415148,62876.0,62875.0,0.002638]
[1728862607502,1.03723483,62876.0,62875.0,0.002638]
[1728862607763,1.21591347,62876.0,62875.0,0.002638]
[1728862608471,1.21591347,62876.0,62842.0,0.001638]
[1728862608472,0.192126,62843.0,62842.0,0.001638]
[1728862608732,0.5916593,62843.0,62842.0,0.001638]
[1728862608929,0.46749265,62843.0,62842.0,0.001638]
[1728862609164,0.481421,62843.0,62842.0,0.001638]
[1728862610102,0.491421,62843.0,62842.0,0.002638]
[1728862610564,0.490421,62843.0,62842.0,0.001638]
[1728862610794,0.498421,62843.0,62842.0,0.002638]
[1728862611705,0.47349265,62843.0,62842.0,0.002638]
[1728862611939,0.52805533,62843.0,62842.0,0.002638]
[1728862614627,0.55298566,62843.0,62842.0,0.002638]
[1728862615912,0.76182624,62843.0,62842.0,0.002638]
[1728862616347,0.74482624,62843.0,62842.0,0.001638]
[1728862616562,0.75282624,62843.0,62842.0,0.001638]
[1728862616779,0.76182624,62843.0,62842.0,0.001638]
[1728862620135,0.71420967,62843.0,62842.0,0.001638]
[1728862620898,0.73720967,62843.0,62842.0,0.001638]
[1728862621603,0.71227934,62843.0,62842.0,0.001638]
[1728862621818,0.81227934,62843.0,62842.0,0.001638]
[1728862624756,0.38455825,62843.0,62842.0,0.001638]
[1728862624966,0.55128758,62843.0,62842.0,0.001638]
[1728862625407,0.53428758,62843.0,62842.0,0.001638]
[1728862625858,0.54328758,62843.0,62842.0,0.001638]
[1728862626528,0.53428758,62843.0,62842.0,0.001638]
[1728862627021,0.54628758,62843.0,62842.0,0.002638]
[1728862627252,0.44628758,62843.0,62842.0,0.002638]
[1728862627474,0.20105825,62843.0,62842.0,0.002638]
[1728862627907,0.36778758,62843.0,62842.0,0.002638]
[1728862628389,0.36778758,62843.0,62842.0,0.001638]
[1728862628390,0.35978758,62843.0,62842.0,0.001638]
[1728862628624,0.36278758,62843.0,62842.0,0.001638]
[1728862631359,0.35978758,62843.0,62842.0,0.001638]
[1728862631585,0.33185533,62843.0,62842.0,0.001638]
[1728862632073,0.33385533,62843.0,62842.0,0.001638]
[1728862632766,0.167126,62843.0,62842.0,0.001638]
[1728862633729,0.008,62843.0,62842.0,0.001638]
[1728862633967,0.165126,62843.0,62842.0,0.001638]
[1728862634415,0.164126,62843.0,62842.0,0.01206659]
[1728862634637,0.164126,62843.0,62842.0,0.001638]
[1728862634638,0.02992866,62843.0,62842.0,0.001638]
[1728862634884,0.02992866,62843.0,62842.0,0.17119559]
[1728862635121,0.02992866,62843.0,62842.0,0.160767]
[1728862635335,0.02992866,62843.0,62842.0,0.17119559]
[1728862635611,0.02992866,62843.0,62842.0,0.17319559]
[1728862635900,0.02592866,62843.0,62842.0,0.32399101]
[1728862636118,0.02592866,62843.0,62842.0,0.32199101]
[1728862636335,0.02692866,62843.0,62842.0,0.32799101]
[1728862636566,0.02792866,62843.0,62842.0,0.32899101]
[1728862637702,0.02792866,62843.0,62842.0,0.33397474]
[1728862639581,0.02792866,62843.0,62842.0,0.33397414]
[1728862639820,0.02792866,62843.0,62842.0,0.32899101]
[1728862640041,0.02792866,62843.0,62842.0,0.33397415]
[1728862640272,0.003,62843.0,62842.0,0.33397415]
[1728862641421,0.003,62843.0,62842.0,0.58010069]
[1728862641645,0.003,62843.0,62842.0,0.67850069]
[1728862642364,0.23772356,62850.0,62842.0,0.51237169]
[1728862642601,0.23772356,62850.0,62849.0,0.159111]
[1728862642831,0.23936356,62859.0,62858.0,0.159088]
[1728862643368,0.00164,62859.0,62858.0,0.159088]
[1728862644747,0.00164,62859.0,62858.0,0.236488]
[1728862645186,0.00264,62859.0,62858.0,0.244488]
[1728862646143,0.00364,62859.0,62858.0,0.174088]
[1728862654289,0.00364,62859.0,62858.0,0.43411201]
[1728862654524,0.00364,62859.0,62858.0,0.54403201]
[1728862655203,0.00364,62859.0,62858.0,0.54101389]
[1728862655204,0.00264,62859.0,62858.0,0.54101389]
[1728862655460,0.00264,62859.0,62858.0,0.53401389]
[1728862655461,0.00164,62859.0,62858.0,0.53401389]
[1728862655702,0.00364,62859.0,62858.0,0.55401389]
[1728862656168,0.00264,62859.0,62858.0,0.54701389]
[1728862656393,0.00264,62859.0,62858.0,0.55910894]
[1728862656636,0.00364,62859.0,62858.0,0.56610894]
[1728862656850,0.00264,62859.0,62858.0,0.55310894]
[1728862657275,0.00364,62859.0,62858.0,0.56212706]
[1728862660269,0.00364,62859.0,62858.0,0.56710822]
[1728862660723,0.00364,62859.0,62858.0,0.56212706]
[1728862661143,0.00364,62859.0,62858.0,0.56710822]
[1728862662523,0.00364,62859.0,62858.0,0.56212706]
[1728862662795,0.00364,62859.0,62858.0,0.55501316]
[1728862663038,0.00364,62859.0,62858.0,0.37821316]
[1728862663242,0.00364,62859.0,62858.0,0.37903216]
[1728862666144,0.00364,62859.0,62858.0,0.37903242]
[1728862673774,0.00364,62859.0,62858.0,0.37903234]
[1728862675241,0.00364,62859.0,62858.0,0.59447424]
[1728862675478,0.00364,62859.0,62858.0,0.59647424]
[1728862677316,0.00364,62859.0,62858.0,0.59447424]
[1728862677545,0.00364,62859.0,62858.0,0.58949291]
[1728862677764,0.00364,62859.0,62858.0,0.59447392]
[1728862678252,0.00364,62859.0,62858.0,0.59647392]
[1728862679998,0.00364,62859.0,62858.0,0.59447392]
[1728862680221,0.00364,62859.0,62858.0,0.61747392]
[1728862680440,0.00364,62859.0,62858.0,0.71747392]
[1728862680932,0.00364,62859.0,62858.0,0.71747389]
[1728862683490,0.00364,62859.0,62858.0,0.71830043]
[1728862683995,0.00364,62859.0,62858.0,0.52867389]
[1728862684244,0.00364,62859.0,62858.0,0.528674]
[1728862684978,0.00364,62859.0,62858.0,0.428674]
[1728862685222,0.00364,62859.0,62858.0,0.3790321]
[1728862686140,0.00264,62859.0,62858.0,0.3650321]
[1728862686617,0.00264,62859.0,62858.0,0.3790321]
[1728862686618,0.00364,62859.0,62858.0,0.3790321]
[1728862687366,0.00264,62859.0,62858.0,0.3720321]
[1728862687582,0.00364,62859.0,62858.0,0.3850321]
[1728862687804,0.00364,62859.0,62858.0,0.38005101]
[1728862688045,0.00364,62859.0,62858.0,0.38503267]
[1728862694269,0.00364,62859.0,62858.0,0.43477573]
[1728862695657,0.00364,62859.0,62858.0,0.44518721]
[1728862697808,0.00364,62859.0,62858.0,0.39544415]
[1728862698514,0.00364,62859.0,62858.0,0.36352415]
[1728862698765,0.08074,62859.0,62858.0,0.36352415]
[1728862702981,0.08074,62859.0,62858.0,0.35854249]
[1728862703208,0.08074,62859.0,62858.0,0.36352428]
[1728862706841,0.08074,62859.0,62858.0,0.36352434]
[1728862707276,0.08074,62859.0,62858.0,0.35854249]
[1728862707495,0.08074,62859.0,62858.0,0.36352434]
[1728862710757,0.08074,62859.0,62858.0,0.36352428]
[1728862714689,0.00364,62859.0,62858.0,0.36352428]
[1728862726895,0.00364,62859.0,62858.0,0.41330248]
[1728862727116,0.00364,62859.0,62858.0,0.40832069]
[1728862728064,0.00364,62859.0,62858.0,0.52048227]
[1728862734511,0.00364,62859.0,62858.0,0.70014669]
[1728862734746,0.00364,62859.0,62858.0,0.94311779]
[1728862735020,0.00364,62859.0,62858.0,1.06247886]
[1728862735249,0.00364,62859.0,62858.0,1.14017937]
[1728862735940,0.00264,62859.0,62858.0,1.12717937]
[1728862736184,0.00364,62859.0,62858.0,1.14017937]
[1728862736405,0.00264,62859.0,62858.0,1.12617937]
[1728862736869,0.00264,62859.0,62858.0,1.14017937]
[1728862737332,0.00264,62859.0,62858.0,1.12617937]
[1728862737599,0.00164,62859.0,62858.0,2.29627937]
[1728862737817,0.00164,62859.0,62858.0,2.31027937]
[1728862738275,0.00164,62859.0,62858.0,2.29627937]
[1728862738487,0.00164,62859.0,62858.0,2.31027937]
[1728862739005,0.00164,62859.0,62858.0,2.19611779]
[1728862741602,0.00164,62859.0,62858.0,2.19811779]
[1728862742296,0.00164,62859.0,62858.0,2.31027937]
[1728862744694,0.00164,62859.0,62858.0,2.42947751]
[1728862747514,0.00164,62859.0,62858.0,2.31027937]
[1728862749204,0.00164,62859.0,62858.0,2.00427626]
[1728862749448,0.00164,62859.0,62858.0,0.70106493]
[1728862749686,0.00164,62859.0,62858.0,0.65340227]
[1728862750143,0.00164,62859.0,62858.0,0.63940227]
[1728862750634,0.00164,62859.0,62858.0,0.65340227]
[1728862750854,0.00164,62859.0,62858.0,0.63940227]
[1728862751089,0.00164,62859.0,62858.0,0.65340227]
[1728862751980,0.00164,62859.0,62858.0,0.63940227]
[1728862752227,0.00164,62859.0,62858.0,0.65340227]
[1728862753781,0.17924,62859.0,62858.0,0.54124069]
[1728862753998,0.17924,62859.0,62858.0,0.49146249]
[1728862754261,0.17924,62859.0,62858.0,0.39146249]
[1728862755387,0.17924,62859.0,62858.0,0.49146249]
[1728862759715,0.17924,62859.0,62858.0,0.54114564]
[1728862759934,0.17924,62859.0,62858.0,0.49146249]
[1728862760162,0.17924,62859.0,62858.0,0.54114562]
[1728862760383,0.00164,62859.0,62858.0,0.54114562]
[1728862772442,0.00164,62859.0,62858.0,0.58882712]
[1728862773134,0.00164,62859.0,62858.0,0.54114562]
[1728862774829,0.00164,62859.0,62858.0,0.58882712]
[1728862775056,0.00164,62859.0,62858.0,0.54114562]
[1728862775517,0.00164,62859.0,62858.0,0.58882712]
[1728862777603,0.00164,62859.0,62858.0,0.58887628]
[1728862778522,0.00164,62859.0,62858.0,0.61274161]
[1728862778743,0.00164,62859.0,62858.0,0.78790592]
[1728862780665,0.00164,62859.0,62858.0,0.94693283]
[1728862780911,0.31642356,62870.0,62869.0,0.27122158]
[1728862780912,0.23772356,62870.0,62869.0,0.27122158]
[1728862781156,0.23772356,62870.0,62869.0,0.53704872]
[1728862781418,0.23772356,62870.0,62869.0,0.58478331]
[1728862781673,0.0787,62874.0,62873.0,0.19097]
[1728862781897,0.0787,62874.0,62873.0,0.46435559]
[1728862782136,0.0787,62874.0,62873.0,0.52383306]
[1728862782607,0.0787,62874.0,62873.0,0.47409266]
[1728862783053,0.0787,62874.0,62873.0,0.48809266]
[1728862783348,0.0787,62874.0,62873.0,0.50209266]
[1728862784075,0.0787,62874.0,62873.0,0.48809266]
[1728862784791,0.0787,62874.0,62873.0,0.50209266]
[1728862785282,0.0787,62874.0,62873.0,0.48809266]
[1728862785528,0.0787,62874.0,62873.0,0.51595794]
[1728862786002,0.0787,62874.0,62873.0,0.52995794]
[1728862786710,0.1675,62878.0,62877.0,0.19096]
[1728862786949,0.1675,62878.0,62877.0,0.46434559]
[1728862787182,0.1675,62878.0,62877.0,0.47407393]
[1728862787650,0.0771,62878.0,62877.0,0.47407393]
[1728862787890,0.0771,62878.0,62877.0,0.49305406]
[1728862788369,0.0771,62878.0,62877.0,0.47905406]
[1728862788592,0.0771,62878.0,62877.0,0.49305406]
[1728862788869,0.0771,62878.0,62877.0,0.49305417]
[1728862789342,0.0771,62878.0,62877.0,0.50705417]
[1728862789832,0.0771,62878.0,62877.0,0.49305417]
[1728862790320,0.0771,62878.0,62877.0,0.50705417]
[1728862792478,0.0771,62878.0,62877.0,0.50705407]
[1728862796525,0.0771,62878.0,62877.0,0.50705401]
[1728862798854,0.0771,62878.0,62877.0,0.50705407]
[1728862799326,0.0771,62878.0,62877.0,0.50207393]
[1728862799567,0.0771,62878.0,62877.0,0.50705407]
[1728862799804,0.07792,62878.0,62877.0,0.50705407]
[1728862802467,0.07792,62878.0,62877.0,0.50207393]
[1728862804408,0.07792,62878.0,62877.0,0.507054]
[1728862804860,0.07792,62878.0,62877.0,0.50207393]
[1728862806987,0.07792,62878.0,62877.0,0.5070542]
[1728862809943,0.07792,62878.0,62877.0,0.50207393]
[1728862815535,0.07792,62878.0,62877.0,0.55184144]
[1728862823904,0.16852,62878.0,62877.0,0.43967986]
[1728862824151,0.16852,62878.0,62877.0,0.20174865]
[1728862824389,0.17352,62878.0,62877.0,0.20174865]
[1728862824637,0.332558,62878.0,62877.0,0.04270865]
[1728862824890,0.332558,62878.0,62877.0,0.03772834]
[1728862825128,0.332558,62878.0,62877.0,0.02372834]
[1728862825367,0.332558,62878.0,62877.0,0.023]
[1728862825607,0.332558,62878.0,62877.0,0.014]
[1728862825848,0.50879889,62878.0,62877.0,0.014]
[1728862826129,0.6291728,62878.0,62877.0,0.019]
[1728862826361,0.65303778,62878.0,62877.0,0.019]
[1728862826599,0.53371288,62878.0,62877.0,0.019]
[1728862827313,0.53371288,62878.0,62877.0,0.005]
[1728862827538,0.53371288,62878.0,62877.0,0.014]
[1728862827778,0.63114537,62878.0,62877.0,0.014]
[1728862828007,0.159053,62873.0,62868.0,0.159062]
[1728862828252,0.1768,62868.0,62867.0,0.318127]
[1728862828480,0.1768,62868.0,62867.0,0.477192]
[1728862829862,0.1768,62868.0,62867.0,0.48725754]
[1728862830084,0.1768,62868.0,62867.0,0.49625754]
[1728862830992,0.1768,62868.0,62867.0,0.50425754]
[1728862835210,0.17762,62868.0,62867.0,0.50425754]
[1728862837988,0.17762,62868.0,62867.0,0.66548155]
[1728862842228,0.00082,62868.0,62867.0,0.66548155]
[1728862844361,0.00082,62868.0,62867.0,0.66528155]
[1728862844587,0.00082,62868.0,62867.0,0.66458155]
[1728862844822,0.00082,62868.0,62867.0,0.66448155]
[1728862845310,0.00082,62868.0,62867.0,0.66388155]
[1728862845558,0.00082,62868.0,62867.0,0.66358155]
[1728862846034,0.00082,62868.0,62867.0,0.66348155]
[1728862846276,0.00082,62868.0,62867.0,0.66288155]
[1728862846517,0.00082,62868.0,62867.0,0.66268155]
[1728862846755,0.00082,62868.0,62867.0,0.66258155]
[1728862846964,0.00082,62868.0,62867.0,0.66228155]
[1728862847236,0.00082,62868.0,62867.0,0.66188155]
[1728862847481,0.00082,62868.0,62867.0,0.66168155]
[1728862847716,0.00082,62868.0,62867.0,0.66148155]
[1728862847968,0.00082,62868.0,62867.0,0.66118155]
[1728862848219,0.00082,62868.0,62867.0,0.77304313]
[1728862848440,0.00082,62868.0,62867.0,0.80476313]
[1728862848695,0.00082,62868.0,62867.0,0.80456313]
[1728862849154,0.00082,62868.0,62867.0,0.78756313]
[1728862849423,0.00082,62868.0,62867.0,0.79656313]
[1728862850779,0.00082,62868.0,62867.0,0.80456313]
[1728862851005,0.00082,62868.0,62867.0,0.89466313]
[1728862851225,0.00082,62868.0,62867.0,0.89966313]
[1728862851453,0.00082,62868.0,62867.0,0.91366313]
[1728862852079,0.00082,62868.0,62867.0,0.89966313]
[1728862852565,0.00082,62868.0,62867.0,1.02266313]
[1728862852795,0.00082,62868.0,62867.0,1.07228537]
[1728862853958,0.00082,62868.0,62867.0,1.08628537]
[1728862854443,0.00082,62868.0,62867.0,1.07228537]
[1728862854666,0.00082,62868.0,62867.0,1.08628537]
[1728862854899,0.00082,62868.0,62867.0,1.07228537]
[1728862855130,0.00082,62868.0,62867.0,1.08628537]
[1728862858383,0.00082,62868.0,62867.0,1.08792537]
[1728862860491,0.00082,62868.0,62867.0,0.98982537]
[1728862864021,0.00082,62868.0,62867.0,0.85466379]
[1728862864267,0.00082,62868.0,62867.0,0.96682537]
[1728862865223,0.17592,62868.0,62867.0,0.96682537]
[1728862872769,0.08292,62868.0,62867.0,0.96682537]
[1728862875660,0.08292,62868.0,62867.0,0.971806]
[1728862876579,0.08292,62868.0,62867.0,0.97180605]
[1728862879146,0.08292,62868.0,62867.0,1.08396763]
[1728862879389,0.08292,62868.0,62867.0,0.97180605]
[1728862879853,0.08292,62868.0,62867.0,0.97180594]
[1728862880333,0.00082,62868.0,62867.0,0.98354707]
[1728862882472,0.00082,62868.0,62867.0,1.09570865]
[1728862882718,0.00082,62868.0,62867.0,1.57836915]
[1728862882952,0.00082,62878.0,62877.0,0.15904]
[1728862883185,0.00082,62878.0,62877.0,0.4870284]
[1728862883458,0.00082,62878.0,62877.0,0.63954582]
[1728862883696,0.00082,62878.0,62877.0,0.63954512]
[1728862884191,0.00082,62878.0,62877.0,0.54038354]
[1728862884440,0.00082,62878.0,62877.0,0.55438354]
[1728862884689,0.00082,62878.0,62877.0,0.42922196]
[1728862884913,0.00082,62878.0,62877.0,0.55538354]
[1728862885172,0.00082,62878.0,62877.0,0.54138354]
[1728862885401,0.00082,62878.0,62877.0,0.55538354]
[1728862885861,0.00082,62878.0,62877.0,0.54138354]
[1728862886312,0.00082,62878.0,62877.0,0.55538354]
[1728862887466,0.00082,62878.0,62877.0,0.55538358]
[1728862891380,0.00082,62878.0,62877.0,0.56719621]
[1728862892284,0.00082,62878.0,62877.0,0.78135779]
[1728862892513,0.00082,62878.0,62877.0,0.79035779]
[1728862892766,0.00082,62878.0,62877.0,1.07356401]
[1728862892962,0.00082,62878.0,62877.0,0.75379465]
[1728862893214,0.00082,62878.0,62877.0,0.97811781]
[1728862893677,0.00082,62878.0,62877.0,1.09542556]
[1728862893924,0.00082,62878.0,62877.0,1.08142556]
[1728862894162,0.00082,62878.0,62877.0,1.09542556]
[1728862894400,0.00082,62878.0,62877.0,0.97611781]
[1728862894628,0.00082,62878.0,62877.0,1.06653468]
[1728862894863,0.00082,62878.0,62877.0,0.9543731]
[1728862895093,0.00082,62878.0,62877.0,0.97099178]
[1728862895317,0.00082,62878.0,62877.0,1.01453221]
[1728862895790,0.00082,62878.0,62877.0,1.04253221]
[1728862896470,0.00082,62878.0,62877.0,0.86891095]
[1728862896763,0.00082,62878.0,62877.0,0.64458779]
[1728862896995,0.00082,62878.0,62877.0,0.86891095]
[1728862897216,0.00082,62878.0,62877.0,0.79737788]
[1728862897661,0.00082,62878.0,62877.0,0.86891095]
[1728862898119,0.00082,62878.0,62877.0,0.79737788]
[1728862898344,0.00082,62878.0,62877.0,0.55005472]
[1728862898577,0.08182,62878.0,62877.0,0.6622163]
[1728862898805,0.18132,62878.0,62877.0,0.61259406]
[1728862905421,0.08182,62878.0,62877.0,0.61259406]
[1728862905662,0.00082,62878.0,62877.0,0.61259406]
[1728862905905,0.00082,62878.0,62877.0,0.66225579]
[1728862906135,0.00082,62878.0,62877.0,0.66225549]
[1728862907115,0.00082,62878.0,62877.0,0.61259406]
[1728862908083,0.00082,62878.0,62877.0,0.66225976]
[1728862911174,0.00082,62878.0,62877.0,0.55009818]
[1728862911388,0.18062,62878.0,62877.0,0.19547584]
[1728862912177,0.18062,62878.0,62877.0,0.18147584]
[1728862912432,0.18062,62878.0,62877.0,0.19547584]
[1728862912920,0.18062,62878.0,62877.0,0.18147584]
[1728862913416,0.18062,62878.0,62877.0,0.17847584]
[1728862913879,0.18062,62878.0,62877.0,0.18947584]
[1728862922298,0.18562,62878.0,62877.0,0.03043584]
[1728862922525,0.344658,62878.0,62877.0,0.03043584]
[1728862923030,0.344658,62878.0,62877.0,0.01943584]
[1728862923249,0.344658,62878.0,62877.0,0.011]
[1728862923521,0.344658,62878.0,62877.0,0.01240823]
[1728862924234,0.344658,62878.0,62877.0,0.004]
[1728862924458,0.344658,62878.0,62877.0,0.006]
[1728862924687,0.36957206,62878.0,62877.0,0.004]
[1728862925450,0.005,62869.0,62868.0,0.478827]
[1728862925663,0.1743,62869.0,62868.0,0.478827]
[1728862926807,0.1743,62869.0,62868.0,0.484827]
[1728862928624,0.1743,62869.0,62868.0,0.491827]
[1728862931376,0.005,62871.0,62868.0,0.49398801]
[1728862931594,0.1788,62874.0,62868.0,0.49398801]
[1728862931595,0.005,62869.0,62868.0,0.491827]
[1728862931811,0.005,62871.0,62870.0,0.159058]
[1728862932950,0.005,62872.0,62870.0,0.004]
[1728862933173,0.005,62872.0,62871.0,0.159055]
[1728862934119,0.005,62875.0,62872.0,0.318105]
[1728862934349,0.17052,62878.0,62873.0,0.43243559]
[1728862934350,0.005,62874.0,62873.0,0.43243559]
[1728862934815,0.07882,62878.0,62873.0,0.59995216]
[1728862934816,0.08382,62878.0,62873.0,0.59995216]
[1728862935107,0.08382,62878.0,62877.0,0.27120158]
[1728862935108,0.00082,62878.0,62877.0,0.27120158]
[1728862935329,0.00082,62878.0,62877.0,0.32026401]
[1728862935612,0.00082,62878.0,62877.0,0.44088488]
[1728862935825,0.00082,62878.0,62877.0,0.47280488]
[1728862936336,0.00082,62878.0,62877.0,0.56240488]
[1728862936810,0.00082,62878.0,62877.0,0.56140488]
[1728862937036,0.00082,62878.0,62877.0,0.55040488]
[1728862937273,0.00082,62878.0,62877.0,0.57840488]
[1728862937983,0.00082,62878.0,62877.0,0.73259434]
[1728862938967,0.00082,62878.0,62877.0,0.75559434]
[1728862939225,0.00082,62878.0,62877.0,0.80520872]
[1728862939464,0.00082,62878.0,62877.0,0.75559434]
[1728862940163,0.00082,62878.0,62877.0,0.80520473]
[1728862940399,0.00082,62878.0,62877.0,0.75559434]
[1728862940881,0.00082,62878.0,62877.0,0.80520005]
[1728862941332,0.00082,62878.0,62877.0,0.81714853]
[1728862945138,0.00082,62878.0,62877.0,0.71654853]
[1728862945355,0.00082,62878.0,62877.0,0.66694282]
[1728862952867,0.001638,62886.0,62881.0,0.03192]
[1728862953127,0.24272356,62899.0,62889.0,0.31393]
[1728862953128,0.23772356,62891.0,62889.0,0.31393]
[1728862953355,0.23772356,62891.0,62889.0,0.31710966]
[1728862953814,0.23772356,62899.0,62889.0,0.32547098]
[1728862954041,0.23772356,62899.0,62889.0,0.40379132]
[1728862954259,0.23772356,62899.0,62889.0,0.56501533]
[1728862954967,0.23772356,62899.0,62889.0,0.58257927]
[1728862955203,0.23772356,62899.0,62889.0,0.63209368]
[1728862955444,0.23772356,62899.0,62889.0,0.59657927]
[1728862955659,0.23772356,62899.0,62889.0,0.60857927]
[1728862956141,0.23772356,62899.0,62889.0,0.61057927]
[1728862956660,0.23772356,62899.0,62898.0,0.45725804]
[1728862956873,0.23772356,62899.0,62898.0,0.61848205]
[1728862957134,0.23772356,62899.0,62898.0,0.62680178]
[1728862957359,0.23772356,62907.0,62901.0,0.258979]
[1728862957612,0.23772356,62907.0,62901.0,0.42338222]
[1728862957832,0.005819,62916.0,62901.0,0.88692509]
[1728862958074,0.005819,62916.0,62901.0,0.89523887]
[1728862958347,0.000819,62916.0,62901.0,0.89723887]
[1728862958795,0.000819,62916.0,62901.0,0.90923887]
[1728862959268,0.000819,62916.0,62901.0,0.89723887]
[1728862959502,0.000819,62916.0,62901.0,0.73088783]
[1728862959725,0.000819,62916.0,62901.0,0.89723887]
[1728862960143,0.000819,62916.0,62901.0,0.74488783]
[1728862960282,0.000819,62916.0,62901.0,0.73088783]
[1728862960535,0.000819,62916.0,62901.0,0.74488783]
[1728862960734,0.081338,62902.0,62901.0,0.49743679]
[1728862960968,0.081338,62902.0,62901.0,0.46043679]
[1728862961177,0.001638,62902.0,62901.0,0.46043679]
[1728862961383,0.001638,62902.0,62901.0,0.47443679]
[1728862961983,0.001638,62902.0,62901.0,0.46043679]
[1728862962426,0.001638,62902.0,62901.0,0.47443679]
[1728862962673,0.001638,62902.0,62901.0,0.48843679]
[1728862964570,0.001638,62902.0,62901.0,0.47443679]
[1728862964793,0.001638,62902.0,62901.0,0.48637863]
[1728862965004,0.001638,62902.0,62901.0,0.50037863]
[1728862968291,0.001138,62902.0,62901.0,0.50037863]
[1728862981288,0.001138,62902.0,62901.0,0.52337863]
[1728862981527,0.001138,62902.0,62901.0,0.57293445]
[1728862982181,0.001138,62902.0,62901.0,0.54493445]
[1728862982674,0.001138,62902.0,62901.0,0.55893445]
[1728862983803,0.000819,62912.0,62911.0,0.48222504]
[1728862984012,0.000819,62912.0,62911.0,0.87030487]
[1728862984282,0.24272356,62926.0,62911.0,0.87030487]
[1728862984283,0.23772356,62926.0,62915.0,0.158944]
[1728862984506,0.23772356,62926.0,62915.0,0.69417311]
[1728862984733,0.23772356,62926.0,62915.0,0.69972328]
[1728862985808,0.23772356,62926.0,62915.0,0.71372328]
[1728862986027,0.23772356,62926.0,62915.0,0.72932394]
[1728862986245,0.23772356,62926.0,62915.0,0.74332394]
[1728862986679,0.23772356,62926.0,62915.0,0.70632394]